{"text_format":"3","workbook":"xlsx","n_sheets":3,"sheets":["Начало","Бюджет и учет подарков","Данные"],"not_rendered":{"charts":1,"defined_names":1},"read":"whole","date_system":"1900"}

{"sheet":"Начало","index":0,"n_rows":7,"n_cols":2,"rows_kept":7}
[null,"О шаблоне"]
[null,"Этот шаблон используется для регистрации покупок подарков и отслеживания их в бюджете."]
[null,"Введите в таблицу имена членов семьи и друзей, подарки, запланированные в бюджете и потраченные суммы, примечания, а также выберите событие и месяц."]
[null,"Диаграмма месячного обзора обновляется автоматически."]
[null,"Примечание. "]
[null,"В столбце A листа БЮДЖЕТ И УЧЕТ ПОДАРКОВ содержатся дополнительные инструкции. Этот текст намеренно скрыт. Чтобы удалить этот текст, выделите столбец A и нажмите клавишу DELETE. Чтобы отобразить текст, выделите столбец A и измените цвет шрифта."]
[null,"Чтобы получить дополнительные сведения о таблице, нажмите клавиши SHIFT+F10, выберите пункт \"Таблица\", а затем — \"Замещающий текст\"."]

{"sheet":"Бюджет и учет подарков","index":1,"n_rows":10,"n_cols":13,"rows_kept":10,"merged":[[0,1,0,4],[0,5,0,12],[1,1,1,2],[2,1,2,12],[3,1,3,3]]}
["Создайте личный бюджет и учет подарков на этом листе. В ячейке справа указано название этого листа, а совет приведен в ячейке F1. В ячейках этого столбца представлены полезные инструкции по использованию этого листа.","Бюджет и учет подарков",{"$nulls":3},"Заполните максимальный объем сведений в начале каждого года. Введите имена членов семьи и друзей, выберите событие для подарка, выберите месяц события и введите сумму, которую вы хотите потратить. Каждый человек может отображаться в таблице несколько раз для разных событий (день рождения, праздник, ожидание ребенка и т. д.)."]
["Подпись \"Месячный обзор\" находится в ячейке справа, а подсказка — в ячейке D2.","Месячный обзор",null,"Используйте диаграмму для просмотра предстоящих месяцев с целью планирования. Регистрируйте свои покупки, чтобы отслеживать их в бюджете."]
["Гистограмма с суммами из бюджета с наложением графика затраченных сумм находится в ячейке справа.","Гистограмма с суммами из бюджета с наложением графика затраченных сумм расположена в этой ячейке."]
["Подпись \"Бюджет и учет подарков\" находится в ячейке справа.","Бюджет и учет подарков"]
["Введите сведения в таблице \"Контроль бюджета\", начиная с ячейки справа.","Кто","Событие","Месяц","Сумма\nв бюджете","Сумма\nзатрат","Подарок","Ссылка на подарок","В магазине/\nВ Интернете","Куплено?","Упаковано?","Доставлено?","Примечания"]
[null,"Имя 1","Дни рождения","Июнь",{"v":50,"d":"50 ₽"},{"v":30,"d":"30 ₽"},"Обувь","Продавец","В Интернете","Да","Нет","Нет","6/16, билеты в кино"]
[null,"Имя 2","Юбилеи","Апрель",{"v":20,"d":"20 ₽"},{"v":20,"d":"20 ₽"},"Кошка","Продавец","В магазине","Нет","Нет","Нет","Он упомянул, что любит собак"]
[null,"Имя 3","Праздники","Июль",{"v":50,"d":"50 ₽"},{"v":70,"d":"70 ₽"},"Наушники","Продавец","В Интернете","Нет","Нет","Нет","Что-нибудь для общежития"]
[null,"Имя 4","Дни рождения","Январь",{"v":20,"d":"20 ₽"},{"v":30,"d":"30 ₽"},"Игра","Продавец","В магазине","Да","Да","Да"]
[null,"Имя 5","Свадьбы","Июнь",{"v":100,"d":"100 ₽"},{"v":150,"d":"150 ₽"},"Хрустальная ваза","Продавец","В магазине","Да","Да","Нет"]

{"sheet":"Данные","index":2,"n_rows":13,"n_cols":8,"rows_kept":13,"hidden":true}
["События",null,"Дата","Дата","Выделенный бюджет\nДни рождения","Выделенный бюджет\nПраздники","Выделенный бюджет\nДругое","Сумма затрат"]
["Дни рождения",null,"Январь","Янв",{"$f":"SUMIFS(БюджетУчет[Сумма\nв бюджете],БюджетУчет[Месяц],\"Январь\",БюджетУчет[Событие],\"Дни рождения\")","v":{"v":20,"d":"20 ₽"}},{"$f":"SUMIFS(БюджетУчет[Сумма\nв бюджете],БюджетУчет[Месяц],\"Январь\",БюджетУчет[Событие],\"Праздники\")","v":{"v":0,"d":"0 ₽"}},{"$f":"SUMIFS(БюджетУчет[Сумма\nв бюджете],БюджетУчет[Месяц],\"Январь\",БюджетУчет[Событие],\"<>Праздники\",БюджетУчет[Событие],\"<>Дни рождения\")","v":{"v":0,"d":"0 ₽"}},{"$f":"SUMIFS(БюджетУчет[Сумма\nзатрат],БюджетУчет[Месяц],\"Январь\")","v":{"v":30,"d":"30 ₽"}}]
["Праздники",null,"Февраль","Фев",{"$f":"SUMIFS(БюджетУчет[Сумма\nв бюджете],БюджетУчет[Месяц],\"Февраль\",БюджетУчет[Событие],\"Дни рождения\")","v":{"v":0,"d":"0 ₽"}},{"$f":"SUMIFS(БюджетУчет[Сумма\nв бюджете],БюджетУчет[Месяц],\"Февраль\",БюджетУчет[Событие],\"Праздники\")","v":{"v":0,"d":"0 ₽"}},{"$f":"SUMIFS(БюджетУчет[Сумма\nв бюджете],БюджетУчет[Месяц],\"Февраль\",БюджетУчет[Событие],\"<>Праздники\",БюджетУчет[Событие],\"<>Дни рождения\")","v":{"v":0,"d":"0 ₽"}},{"$f":"SUMIFS(БюджетУчет[Сумма\nзатрат],БюджетУчет[Месяц],\"Февраль\")","v":{"v":0,"d":"0 ₽"}}]
["Юбилеи",null,"Март","Мар",{"$f":"SUMIFS(БюджетУчет[Сумма\nв бюджете],БюджетУчет[Месяц],\"Март\",БюджетУчет[Событие],\"Дни рождения\")","v":{"v":0,"d":"0 ₽"}},{"$f":"SUMIFS(БюджетУчет[Сумма\nв бюджете],БюджетУчет[Месяц],\"Март\",БюджетУчет[Событие],\"Праздники\")","v":{"v":0,"d":"0 ₽"}},{"$f":"SUMIFS(БюджетУчет[Сумма\nв бюджете],БюджетУчет[Месяц],\"Март\",БюджетУчет[Событие],\"<>Праздники\",БюджетУчет[Событие],\"<>Дни рождения\")","v":{"v":0,"d":"0 ₽"}},{"$f":"SUMIFS(БюджетУчет[Сумма\nзатрат],БюджетУчет[Месяц],\"Март\")","v":{"v":0,"d":"0 ₽"}}]
["Свадьбы",null,"Апрель","Апр",{"$f":"SUMIFS(БюджетУчет[Сумма\nв бюджете],БюджетУчет[Месяц],\"Апрель\",БюджетУчет[Событие],\"Дни рождения\")","v":{"v":0,"d":"0 ₽"}},{"$f":"SUMIFS(БюджетУчет[Сумма\nв бюджете],БюджетУчет[Месяц],\"Апрель\",БюджетУчет[Событие],\"Праздники\")","v":{"v":0,"d":"0 ₽"}},{"$f":"SUMIFS(БюджетУчет[Сумма\nв бюджете],БюджетУчет[Месяц],\"Апрель\",БюджетУчет[Событие],\"<>Праздники\",БюджетУчет[Событие],\"<>Дни рождения\")","v":{"v":20,"d":"20 ₽"}},{"$f":"SUMIFS(БюджетУчет[Сумма\nзатрат],БюджетУчет[Месяц],\"Апрель\")","v":{"v":20,"d":"20 ₽"}}]
["Девичники",null,"Май","Май",{"$f":"SUMIFS(БюджетУчет[Сумма\nв бюджете],БюджетУчет[Месяц],\"Май\",БюджетУчет[Событие],\"Дни рождения\")","v":{"v":0,"d":"0 ₽"}},{"$f":"SUMIFS(БюджетУчет[Сумма\nв бюджете],БюджетУчет[Месяц],\"Май\",БюджетУчет[Событие],\"Праздники\")","v":{"v":0,"d":"0 ₽"}},{"$f":"SUMIFS(БюджетУчет[Сумма\nв бюджете],БюджетУчет[Месяц],\"Май\",БюджетУчет[Событие],\"<>Праздники\",БюджетУчет[Событие],\"<>Дни рождения\")","v":{"v":0,"d":"0 ₽"}},{"$f":"SUMIFS(БюджетУчет[Сумма\nзатрат],БюджетУчет[Месяц],\"Май\")","v":{"v":0,"d":"0 ₽"}}]
["Вечеринка для будущей матери",null,"Июнь","Июн",{"$f":"SUMIFS(БюджетУчет[Сумма\nв бюджете],БюджетУчет[Месяц],\"Июнь\",БюджетУчет[Событие],\"Дни рождения\")","v":{"v":50,"d":"50 ₽"}},{"$f":"SUMIFS(БюджетУчет[Сумма\nв бюджете],БюджетУчет[Месяц],\"Июнь\",БюджетУчет[Событие],\"Праздники\")","v":{"v":0,"d":"0 ₽"}},{"$f":"SUMIFS(БюджетУчет[Сумма\nв бюджете],БюджетУчет[Месяц],\"Июнь\",БюджетУчет[Событие],\"<>Праздники\",БюджетУчет[Событие],\"<>Дни рождения\")","v":{"v":100,"d":"100 ₽"}},{"$f":"SUMIFS(БюджетУчет[Сумма\nзатрат],БюджетУчет[Месяц],\"Июнь\")","v":{"v":180,"d":"180 ₽"}}]
["Выпускные",null,"Июль","Июл",{"$f":"SUMIFS(БюджетУчет[Сумма\nв бюджете],БюджетУчет[Месяц],\"Июль\",БюджетУчет[Событие],\"Дни рождения\")","v":{"v":0,"d":"0 ₽"}},{"$f":"SUMIFS(БюджетУчет[Сумма\nв бюджете],БюджетУчет[Месяц],\"Июль\",БюджетУчет[Событие],\"Праздники\")","v":{"v":50,"d":"50 ₽"}},{"$f":"SUMIFS(БюджетУчет[Сумма\nв бюджете],БюджетУчет[Месяц],\"Июль\",БюджетУчет[Событие],\"<>Праздники\",БюджетУчет[Событие],\"<>Дни рождения\")","v":{"v":0,"d":"0 ₽"}},{"$f":"SUMIFS(БюджетУчет[Сумма\nзатрат],БюджетУчет[Месяц],\"Июль\")","v":{"v":70,"d":"70 ₽"}}]
["Другое",null,"Август","Авг",{"$f":"SUMIFS(БюджетУчет[Сумма\nв бюджете],БюджетУчет[Месяц],\"Август\",БюджетУчет[Событие],\"Дни рождения\")","v":{"v":0,"d":"0 ₽"}},{"$f":"SUMIFS(БюджетУчет[Сумма\nв бюджете],БюджетУчет[Месяц],\"Август\",БюджетУчет[Событие],\"Праздники\")","v":{"v":0,"d":"0 ₽"}},{"$f":"SUMIFS(БюджетУчет[Сумма\nв бюджете],БюджетУчет[Месяц],\"Август\",БюджетУчет[Событие],\"<>Праздники\",БюджетУчет[Событие],\"<>Дни рождения\")","v":{"v":0,"d":"0 ₽"}},{"$f":"SUMIFS(БюджетУчет[Сумма\nзатрат],БюджетУчет[Месяц],\"Август\")","v":{"v":0,"d":"0 ₽"}}]
[null,null,"Сентябрь","Сен",{"$f":"SUMIFS(БюджетУчет[Сумма\nв бюджете],БюджетУчет[Месяц],\"Сентябрь\",БюджетУчет[Событие],\"Дни рождения\")","v":{"v":0,"d":"0 ₽"}},{"$f":"SUMIFS(БюджетУчет[Сумма\nв бюджете],БюджетУчет[Месяц],\"Сентябрь\",БюджетУчет[Событие],\"Праздники\")","v":{"v":0,"d":"0 ₽"}},{"$f":"SUMIFS(БюджетУчет[Сумма\nв бюджете],БюджетУчет[Месяц],\"Сентябрь\",БюджетУчет[Событие],\"<>Праздники\",БюджетУчет[Событие],\"<>Дни рождения\")","v":{"v":0,"d":"0 ₽"}},{"$f":"SUMIFS(БюджетУчет[Сумма\nзатрат],БюджетУчет[Месяц],\"Сентябрь\")","v":{"v":0,"d":"0 ₽"}}]
[null,null,"Октябрь","Окт",{"$f":"SUMIFS(БюджетУчет[Сумма\nв бюджете],БюджетУчет[Месяц],\"Октябрь\",БюджетУчет[Событие],\"Дни рождения\")","v":{"v":0,"d":"0 ₽"}},{"$f":"SUMIFS(БюджетУчет[Сумма\nв бюджете],БюджетУчет[Месяц],\"Октябрь\",БюджетУчет[Событие],\"Праздники\")","v":{"v":0,"d":"0 ₽"}},{"$f":"SUMIFS(БюджетУчет[Сумма\nв бюджете],БюджетУчет[Месяц],\"Октябрь\",БюджетУчет[Событие],\"<>Праздники\",БюджетУчет[Событие],\"<>Дни рождения\")","v":{"v":0,"d":"0 ₽"}},{"$f":"SUMIFS(БюджетУчет[Сумма\nзатрат],БюджетУчет[Месяц],\"Октябрь\")","v":{"v":0,"d":"0 ₽"}}]
[null,null,"Ноябрь","Ноя",{"$f":"SUMIFS(БюджетУчет[Сумма\nв бюджете],БюджетУчет[Месяц],\"Ноябрь\",БюджетУчет[Событие],\"Дни рождения\")","v":{"v":0,"d":"0 ₽"}},{"$f":"SUMIFS(БюджетУчет[Сумма\nв бюджете],БюджетУчет[Месяц],\"Ноябрь\",БюджетУчет[Событие],\"Праздники\")","v":{"v":0,"d":"0 ₽"}},{"$f":"SUMIFS(БюджетУчет[Сумма\nв бюджете],БюджетУчет[Месяц],\"Ноябрь\",БюджетУчет[Событие],\"<>Праздники\",БюджетУчет[Событие],\"<>Дни рождения\")","v":{"v":0,"d":"0 ₽"}},{"$f":"SUMIFS(БюджетУчет[Сумма\nзатрат],БюджетУчет[Месяц],\"Ноябрь\")","v":{"v":0,"d":"0 ₽"}}]
[null,null,"Декабрь","Дек",{"$f":"SUMIFS(БюджетУчет[Сумма\nв бюджете],БюджетУчет[Месяц],\"Декабрь\",БюджетУчет[Событие],\"Дни рождения\")","v":{"v":0,"d":"0 ₽"}},{"$f":"SUMIFS(БюджетУчет[Сумма\nв бюджете],БюджетУчет[Месяц],\"Декабрь\",БюджетУчет[Событие],\"Праздники\")","v":{"v":0,"d":"0 ₽"}},{"$f":"SUMIFS(БюджетУчет[Сумма\nв бюджете],БюджетУчет[Месяц],\"Декабрь\",БюджетУчет[Событие],\"<>Праздники\",БюджетУчет[Событие],\"<>Дни рождения\")","v":{"v":0,"d":"0 ₽"}},{"$f":"SUMIFS(БюджетУчет[Сумма\nзатрат],БюджетУчет[Месяц],\"Декабрь\")","v":{"v":0,"d":"0 ₽"}}]